bitfinex-derivatives/quotes_SOLF0:USTF0_20250603
["timestamp","ask_amount","ask_price","bid_price","bid_amount"]
[1748970943708,32.04,160.95,160.91,9.69482615]
[1748970944007,32.08613806,160.95,160.91,9.73884602]
[1748970944206,6.2096,160.94,160.91,15.94934602]
[1748970944407,32.08613806,160.95,160.91,9.73884602]
[1748970944711,32.08613806,160.95,160.91,0.04401987]
[1748970944901,6.21,160.93,160.91,0.04401987]
[1748970945702,6.2102,160.92,160.91,0.04401987]
[1748970946508,6.21,160.93,160.91,0.04401987]
[1748970947010,6.21,160.93,160.91,9.73884602]
[1748970947806,32.08613806,160.95,160.91,9.73884602]
[1748970948504,38.29523806,160.95,160.91,9.73884602]
[1748970948907,38.29523806,160.95,160.91,15.94914602]
[1748970949111,6.25523806,160.95,160.91,9.73884602]
[1748970949810,6.25523806,160.95,160.92,6.2101]
[1748970950009,0.04613806,160.95,160.91,9.73884602]
[1748970950602,6.2095,160.94,160.91,15.94934602]
[1748970952005,6.2098,160.93,160.91,15.94934602]
[1748970953007,6.2102,160.92,160.91,0.04401987]
[1748970958415,9.69482615,160.92,160.85,9.69482615]
[1748970958620,9.69482615,160.92,160.86,6.2124]
[1748970959319,6.212,160.88,160.87,0.03933972]
[1748970960616,6.212,160.88,160.87,0.01029667]
[1748970964221,9.69482615,160.89,160.82,9.69482615]
[1748970964421,11.84592615,160.89,160.82,9.69482615]
[1748970964624,6.2135,160.84,160.82,9.69482615]
[1748970964921,41.71482615,160.86,160.77,11.8093187]
[1748970965110,0.04098116,160.83,160.8,0.04073334]
[1748970965718,6.2144,160.81,160.8,0.04073334]
[1748970966818,0.04098116,160.83,160.8,0.04073334]
[1748970967216,0.04098116,160.83,160.82,9.69482615]
[1748970968818,0.04098116,160.83,160.82,15.90882615]
[1748970971920,2.1167,160.94,160.82,15.91482615]
[1748970972126,20.04885074,160.99,160.91,9.69482615]
[1748970972127,36.2044,160.98,160.91,9.69482615]
[1748970972423,36.2044,160.98,160.88,9.69482615]
[1748970972424,34.0495,160.98,160.93,9.69482615]
[1748970972825,6.2088,160.96,160.94,0.04036271]
[1748970973429,0.04437598,160.97,160.94,0.04036271]
[1748970973822,6.25287598,160.97,160.94,6.24956271]
[1748970974021,6.25287598,160.97,160.94,0.04036271]
[1748970974528,0.04437598,160.97,160.94,0.04036271]
[1748970974719,0.04437598,160.97,160.94,16.18241651]
[1748970975625,0.04437598,160.97,160.95,6.209]
[1748970976219,6.25267598,160.97,160.94,16.18241651]
[1748970977128,6.2086,160.96,160.94,16.18241651]
[1748970977529,6.25277598,160.97,160.94,16.18241651]
[1748970977927,0.04437598,160.97,160.94,16.18241651]
[1748970978329,0.04437598,160.97,160.94,0.04036271]
[1748970979431,6.209,160.95,160.94,0.04036271]
[1748970982323,6.209,160.95,160.94,0.01042597]
[1748970985132,6.2087,160.96,160.94,0.01042597]
[1748970986529,6.209,160.95,160.94,0.01042597]
[1748970986930,32.06437598,160.97,160.94,0.01042597]
[1748970987125,6.2088,160.96,160.94,0.01042597]
[1748970987936,6.2089,160.96,160.94,0.01042597]
[1748970988639,6.209,160.95,160.94,0.01042597]
[1748970989039,6.2089,160.96,160.94,0.01042597]
[1748970990736,6.209,160.95,160.94,0.01042597]
[1748970991143,0.04437598,160.97,160.94,0.01042597]
[1748970992940,6.2089,160.96,160.94,0.01042597]
[1748970993143,0.04437598,160.97,160.94,0.01042597]
[1748970993746,39.29130569,161.06,160.96,9.6860893]
[1748970993934,6.2044,161.07,161.02,9.6860893]
[1748970994147,33.56,161.08,161.02,15.8922893]
[1748970994436,33.56,161.08,161.02,9.6860893]
[1748970994745,0.04270451,161.07,161.04,6.2053]
[1748970994942,0.04270451,161.07,161.03,0.04083454]
[1748970995133,0.04270451,161.07,161.06,9.6860893]
[1748970995338,0.04270451,161.07,161.06,15.8908893]
[1748970996439,0.04270451,161.07,161.06,9.6860893]
[1748970997343,0.04270451,161.07,161.06,6.2048]
[1748970997846,0.04270451,161.07,161.05,16.11662711]
[1748971000547,0.04270451,161.07,161.05,22.32172711]
[1748971001447,0.04270451,161.07,161.06,6.2048]
[1748971001847,4.1157,161.13,161.05,16.11662711]
[1748971002050,33.54,161.14,161.09,16.11662711]
[1748971002443,33.54,161.14,161.04,4.2086]
[1748971002643,49.65662711,161.14,161.04,4.2086]
[1748971002847,16.11662711,161.12,161.04,16.11662711]
[1748971003149,6.204,161.08,161.07,0.04355461]
[1748971004847,6.204,161.08,161.07,0.01074859]
[1748971005147,6.2055,161.04,161.01,6.2065]
[1748971005548,6.2057,161.04,161.01,6.2065]
[1748971005745,51.65082711,161.1,161.02,6.2062]
[1748971006150,0.04737603,161.08,161.04,0.04341601]
[1748971007052,6.2054,161.05,161.04,0.04341601]
[1748971007849,6.2069,161.01,160.99,33.54]
[1748971008057,6.2069,161.01,160.97,16.11662711]
[1748971008749,6.2069,161.01,160.98,6.2076]
[1748971008750,6.25319152,161.01,160.98,6.2076]
[1748971009558,0.04629152,161.01,160.99,6.2073]
[1748971010047,0.04629152,161.01,160.97,16.15675113]
[1748971011159,0.04629152,161.01,160.99,6.2075]
[1748971011657,0.04629152,161.01,160.98,6.2077]
[1748971011855,0.04629152,161.01,160.97,16.15675113]
[1748971012255,1.9942,161.1,161.0,16.11662711]
[1748971012460,18.11082711,161.1,161.01,16.11662711]
[1748971012654,18.11082711,161.1,161.0,51.05662711]
[1748971012865,18.11082711,161.1,161.01,6.2067]
[1748971013261,0.04452113,161.07,161.04,0.03982262]
[1748971014056,6.24902113,161.07,161.04,0.03982262]
[1748971014253,0.04452113,161.07,161.04,0.03982262]
[1748971014657,6.205,161.06,161.04,0.03982262]
[1748971016684,16.11662711,161.06,160.95,34.94]
[1748971016856,51.05662711,161.08,160.99,16.11662711]
[1748971017261,6.2051,161.06,160.99,16.11662711]
[1748971017462,51.05662711,161.08,160.99,16.11662711]
[1748971017665,0.04494722,161.05,161.02,0.04648271]
[1748971018355,6.2059,161.03,161.02,0.04648271]
[1748971018561,0.04494722,161.05,161.02,0.04648271]
[1748971019563,6.2055,161.04,161.02,0.04648271]
[1748971019758,0.04494722,161.05,161.02,0.04648271]
[1748971020370,6.2059,161.03,161.02,0.04648271]
[1748971020669,0.04494722,161.05,160.96,9.67990431]
[1748971020670,9.67990431,161.04,160.96,9.67990431]
[1748971020861,13.88770431,161.04,160.96,9.67990431]
[1748971021062,48.82770431,161.04,160.96,9.67990431]
[1748971021463,6.2065,161.02,160.98,6.2076]
[1748971021665,0.04778629,161.02,160.98,9.72300477]
[1748971021966,0.04778629,161.02,161.01,6.2067]
[1748971022464,34.94,161.07,161.0,9.67990431]
[1748971022663,41.1445,161.07,161.03,15.88560431]
[1748971022865,6.2045,161.07,161.03,15.88560431]
[1748971023459,6.2048,161.06,161.03,15.92710394]
[1748971023973,0.04163383,161.07,161.03,9.72140394]
[1748971024171,0.04163383,161.07,161.03,0.04149963]
[1748971025761,6.24623383,161.07,161.03,0.04149963]
[1748971026065,6.24623383,161.07,161.04,6.2052]
[1748971026277,0.04163383,161.07,161.04,9.67990431]
[1748971026466,0.04163383,161.07,161.03,0.04149963]
[1748971026467,0.04163383,161.07,161.06,15.88470431]
[1748971027466,34.94,161.13,161.09,6.2033]
[1748971027677,2.1383,161.14,161.1,9.67990431]
[1748971027968,6.2024,161.13,161.1,5.02659945]
[1748971028163,2.1383,161.14,161.1,5.02659945]
[1748971028671,6.2027,161.12,161.1,5.07291014]
[1748971029869,2.17803766,161.14,161.1,5.07291014]
[1748971030070,2.17803766,161.14,161.1,0.04631069]
[1748971030470,6.2027,161.12,161.1,0.04631069]
[1748971031370,2.17803766,161.14,161.1,0.04631069]
[1748971032167,9.67990431,161.12,161.1,0.04631069]
[1748971032375,44.61990431,161.12,161.1,0.04631069]
[1748971032669,6.2028,161.11,161.1,0.04631069]
[1748971034272,34.94,161.12,161.08,9.67990431]
[1748971035059,34.98468529,161.12,161.08,9.72382724]
[1748971035263,6.2035,161.1,161.08,9.72382724]
[1748971035469,34.98468529,161.12,161.08,0.04392293]
[1748971035671,6.2034,161.1,161.08,0.04392293]
[1748971036370,6.2036,161.09,161.08,0.04392293]
[1748971036676,34.98468529,161.12,161.08,0.04392293]
[1748971037378,34.98468529,161.12,161.08,6.24782293]
[1748971037768,34.98468529,161.12,161.08,0.04392293]
[1748971038071,34.98468529,161.12,161.09,9.67990431]
[1748971038276,0.04468529,161.12,161.09,9.67990431]
[1748971038674,0.04468529,161.12,161.1,6.2031]
[1748971039074,6.24738529,161.12,161.09,15.88340431]
[1748971041366,6.24738529,161.12,161.09,9.67990431]
[1748971041573,0.04468529,161.12,161.09,9.67990431]
[1748971041871,0.04468529,161.12,161.1,6.203]
[1748971042274,6.24718529,161.12,161.09,9.67990431]
[1748971042467,6.24718529,161.12,161.09,15.88330431]
[1748971042977,6.24718529,161.12,161.1,6.2031]
[1748971043180,0.04468529,161.12,161.1,6.2031]
[1748971043483,0.04468529,161.12,161.08,0.04392293]
[1748971043484,0.04468529,161.12,161.11,15.88270431]
[1748971045675,2.0543,161.2,161.11,9.67990431]
[1748971045879,11.73420431,161.2,161.08,7.90698061]
[1748971046075,132.24915757,161.19,161.08,6.2037]
[1748971046376,9.67060387,161.15,161.06,4.3094]
[1748971046575,6.24766644,161.12,161.09,0.03974763]
[1748971047280,0.04496644,161.12,161.09,0.03974763]
[1748971047975,0.04496644,161.12,161.1,9.66706755]
[1748971048179,5.74811655,161.22,161.1,9.66706755]
[1748971048479,5.74811655,161.22,161.14,9.66706755]
[1748971048480,46.27366755,161.22,161.14,9.66706755]
[1748971048677,9.66706755,161.2,161.12,9.66706755]
[1748971048875,9.66706755,161.2,161.12,15.86926755]
[1748971049077,9.66706755,161.2,161.14,9.66706755]
[1748971049380,0.0420753,161.19,161.15,0.04266671]
[1748971050782,6.2004,161.18,161.15,0.04266671]
[1748971051784,0.0420753,161.19,161.15,16.14279715]
[1748971052479,0.0420753,161.19,161.17,16.10013044]
[1748971053677,0.0420753,161.19,161.17,22.30033044]
[1748971053874,6.2418753,161.19,161.17,16.10013044]
[1748971054073,0.0420753,161.19,161.15,0.04266671]
[1748971054782,0.0420753,161.19,161.15,16.14279715]
[1748971054982,6.2002,161.18,161.15,16.14279715]
[1748971055377,6.2418753,161.19,161.15,16.14279715]
[1748971055582,0.0420753,161.19,161.15,16.14279715]
[1748971057082,6.2002,161.18,161.15,22.34389715]
[1748971057782,6.2002,161.18,161.15,16.14279715]
[1748971058777,6.2002,161.18,161.15,22.34399715]
[1748971059190,0.0420753,161.19,161.15,22.34399715]
[1748971059777,6.2420753,161.19,161.15,22.34399715]
[1748971060485,6.2004,161.18,161.15,0.04266671]
[1748971060683,0.0420753,161.19,161.15,0.04266671]
[1748971061189,6.2002,161.18,161.15,0.04266671]
[1748971061704,0.0420753,161.19,161.15,0.04266671]
[1748971062192,6.2009,161.16,161.15,0.04266671]
[1748971064383,6.2009,161.16,161.15,6.671e-05]
[1748971064585,6.2034,161.1,161.07,34.5]
[1748971064889,34.5,161.14,161.06,2.1134]
[1748971065093,34.5,161.14,161.08,6.2037]
[1748971065288,6.2027,161.12,161.08,6.2037]
[1748971065488,6.2027,161.12,161.06,2.1134]
[1748971065792,0.04111986,161.11,161.08,6.2038]
[1748971065980,6.24401986,161.11,161.08,6.2038]
[1748971066187,0.04111986,161.11,161.07,6.24656833]
[1748971067593,6.24421986,161.11,161.07,6.24656833]
[1748971068196,6.24421986,161.11,161.08,6.204]
[1748971069891,6.24421986,161.11,161.07,0.04226833]
[1748971070090,0.04111986,161.11,161.07,0.04226833]
[1748971070495,0.04111986,161.11,161.08,6.2038]
[1748971070797,0.04111986,161.11,161.07,5.81622653]
[1748971070989,0.04111986,161.11,161.09,6.2035]
[1748971072293,0.04111986,161.11,161.1,6.2032]
[1748971073196,0.04111986,161.11,161.09,6.2034]
[1748971074095,0.04111986,161.11,161.1,6.2032]
[1748971074396,0.04111986,161.11,161.08,9.66788571]
[1748971074995,0.04111986,161.11,161.09,6.2034]
[1748971075695,0.04111986,161.11,161.08,9.66788571]
[1748971076997,0.04111986,161.11,161.09,6.2033]
[1748971077700,0.04111986,161.11,161.07,5.81622653]
[1748971077895,0.04111986,161.11,161.07,0.04226833]
[1748971078300,0.04111986,161.11,161.07,5.82276113]
[1748971078700,0.04111986,161.11,161.07,0.04226833]
[1748971078901,0.04111986,161.11,161.07,15.49064684]
[1748971079099,0.04111986,161.11,161.09,6.2034]
[1748971079289,0.04111986,161.11,161.07,15.49064684]
[1748971079694,0.04111986,161.11,161.1,6.2032]
[1748971080187,2.1573,161.17,161.15,6.2012]
[1748971080391,34.42,161.2,161.15,9.66788571]
[1748971081101,44.08788571,161.2,161.12,15.44891847]
[1748971081298,0.0463482,161.18,161.14,0.04531874]
[1748971081602,6.2007,161.17,161.14,0.04531874]
[1748971082103,6.2007,161.17,161.14,6.24691874]
[1748971082600,6.201,161.16,161.14,0.04531874]
[1748971084506,6.2007,161.17,161.14,6.24701874]
[1748971084795,6.2007,161.17,161.15,9.66788571]
[1748971085200,6.2009,161.16,161.15,9.66788571]
[1748971085799,6.2013,161.15,161.14,0.04531874]
[1748971087995,6.2006,161.17,161.14,0.04531874]
[1748971088194,0.0463482,161.18,161.16,9.66788571]
[1748971088596,0.0463482,161.18,161.16,15.86868571]
[1748971088803,0.0463482,161.18,161.16,9.66788571]
[1748971089403,6.2467482,161.18,161.16,9.66788571]
[1748971089998,0.0463482,161.18,161.16,15.86878571]
[1748971090203,0.0463482,161.18,161.16,9.66788571]
[1748971090595,0.0463482,161.18,161.17,6.2005]
[1748971090794,0.0463482,161.18,161.16,9.66788571]
[1748971091202,0.0463482,161.18,161.17,6.2005]
[1748971093501,0.0463482,161.18,161.17,11.98612349]
[1748971094405,0.0463482,161.18,161.17,6.2005]
[1748971094608,0.0463482,161.18,161.17,15.86838571]
[1748971096413,6.1984,161.23,161.2,6.1991]
[1748971096612,34.42,161.26,161.17,5.78155956]
[1748971096912,34.42,161.26,161.21,9.66788571]
[1748971097412,0.04547563,161.25,161.23,9.66788571]
[1748971097911,6.1978,161.24,161.23,9.66788571]
[1748971098305,0.04547563,161.25,161.22,6.24237554]
[1748971098612,0.04547563,161.25,161.22,15.91026125]
[1748971099008,6.24317563,161.25,161.22,15.91026125]
[1748971099316,0.04547563,161.25,161.22,15.91026125]
[1748971099521,0.04547563,161.25,161.22,9.71186125]
[1748971100207,0.04547563,161.25,161.22,0.04397554]
[1748971100413,0.04547563,161.25,161.23,9.66788571]
[1748971100815,0.04547563,161.25,161.22,0.04397554]
[1748971101412,6.1982,161.23,161.22,0.04397554]
[1748971103223,0.04547563,161.25,161.22,9.71186125]
[1748971103417,0.04547563,161.25,161.24,9.66788571]
[1748971103816,0.04547563,161.25,161.23,9.66788571]
[1748971104013,0.04547563,161.25,161.23,15.86578571]
[1748971104214,0.04547563,161.25,161.23,9.66788571]
[1748971104726,0.04547563,161.25,161.24,6.1978]
[1748971107227,0.04547563,161.25,161.23,15.86598571]
[1748971107923,0.04547563,161.25,161.24,6.1978]
[1748971108521,0.04547563,161.25,161.23,9.66788571]
[1748971108721,0.04547563,161.25,161.24,9.66788571]
[1748971109821,0.04547563,161.25,161.24,15.86568571]
[1748971111124,0.04547563,161.25,161.24,6.1978]
[1748971111325,0.04547563,161.25,161.24,15.86568571]
[1748971112626,0.04547563,161.25,161.23,9.66788571]
[1748971113023,0.04547563,161.25,161.23,15.86588571]
[1748971114128,0.04547563,161.25,161.23,6.198]
[1748971114329,0.04547563,161.25,161.23,15.86588571]
[1748971114533,6.24307563,161.25,161.22,6.24257554]
[1748971114725,0.04547563,161.25,161.22,0.04397554]
[1748971115121,6.1978,161.24,161.22,0.04397554]
[1748971115935,6.1982,161.23,161.22,0.04397554]
[1748971116732,6.1982,161.23,161.22,0.01081389]
[1748971117039,8.3097,161.24,161.22,0.01081389]
[1748971117526,6.1982,161.23,161.22,0.01081389]
[1748971117935,11.77968571,161.24,161.15,36.585]
[1748971118132,6.1986,161.22,161.17,9.66788571]
[1748971118322,13.76708571,161.24,161.17,9.66788571]
[1748971118529,13.76708571,161.24,161.15,0.2201]
[1748971118928,13.76708571,161.24,161.18,0.04663506]
[1748971118929,0.04183192,161.21,161.18,0.04663506]
[1748971119134,34.26183192,161.21,161.18,0.04663506]
[1748971119434,6.1996,161.2,161.18,0.04663506]
[1748971119926,40.46093192,161.21,161.18,0.04663506]
[1748971120127,40.46093192,161.21,161.18,6.24673506]
[1748971120530,40.46093192,161.21,161.18,0.04663506]
[1748971121431,6.1995,161.2,161.18,0.04663506]
[1748971122036,34.26183192,161.21,161.18,9.71452077]
[1748971122734,0.04183192,161.21,161.2,9.66788571]
[1748971123235,0.04183192,161.21,161.2,15.86728571]
[1748971127232,0.04183192,161.21,161.19,6.1996]
[1748971127431,0.04183192,161.21,161.2,9.66788571]
[1748971127639,0.04183192,161.21,161.18,0.04663506]
[1748971127838,0.04183192,161.21,161.19,9.66788571]
[1748971128632,0.04183192,161.21,161.2,6.1994]
[1748971129234,0.04183192,161.21,161.19,15.86758571]
[1748971129834,6.24103192,161.21,161.19,9.66788571]
[1748971130437,0.04183192,161.21,161.19,15.86758571]
[1748971130636,0.04183192,161.21,161.19,9.66788571]
[1748971131544,0.04183192,161.21,161.2,6.1994]
[1748971133645,0.04183192,161.21,161.19,6.1996]
[1748971133842,0.04183192,161.21,161.19,15.86748571]
[1748971134046,0.04183192,161.21,161.19,9.66788571]
[1748971134346,0.04183192,161.21,161.2,6.1994]
[1748971136646,0.04183192,161.21,161.19,15.86768571]
[1748971137645,0.04183192,161.21,161.19,21.64876377]
[1748971137845,0.04183192,161.21,161.2,6.1994]
[1748971138750,0.04183192,161.21,161.19,21.65274276]
[1748971139252,0.04183192,161.21,161.19,9.66788571]
[1748971139551,6.24093192,161.21,161.19,9.66788571]
[1748971139742,0.04183192,161.21,161.19,9.66788571]
[1748971139949,0.04183192,161.21,161.19,15.45314276]
[1748971140252,0.04183192,161.21,161.2,6.1994]
[1748971141349,0.04183192,161.21,161.19,15.86748571]
[1748971141950,0.04183192,161.21,161.2,6.1994]
[1748971143746,33.96,161.23,161.22,6.1984]
[1748971143944,33.96,161.23,161.21,9.66788571]
[1748971144344,33.96,161.23,161.22,6.1986]
[1748971144553,13.67768571,161.29,161.21,9.66788571]
[1748971144743,6.1971,161.26,161.23,9.71383966]
[1748971144946,33.96,161.26,161.23,9.71383966]
[1748971145349,33.96,161.26,161.24,6.1976]
[1748971145649,33.96,161.26,161.23,9.71383966]
[1748971146051,40.1571,161.26,161.23,15.91183966]
[1748971146449,33.96,161.26,161.23,9.71383966]
[1748971146649,40.1572,161.26,161.23,9.71383966]
[1748971146852,33.96,161.26,161.23,9.71383966]
[1748971147256,6.1975,161.25,161.23,9.71383966]
[1748971148657,33.96,161.26,161.23,9.71383966]
[1748971148658,6.1978,161.24,161.23,0.04595395]
[1748971154960,6.1978,161.24,161.23,0.01152547]
[1748971156162,130.5178,161.24,161.23,0.01152547]
[1748971156365,6.1999,161.19,161.17,5.78871965]
[1748971156961,6.1999,161.19,161.17,5.79325739]
[1748971158159,40.20274808,161.2,161.17,11.99355739]
[1748971158361,34.00314808,161.2,161.17,5.79325739]
[1748971158757,6.2001,161.18,161.17,5.79325739]
[1748971159460,34.00314808,161.2,161.17,5.79325739]
[1748971160261,6.1998,161.19,161.17,5.79325739]
[1748971160765,6.1998,161.19,161.17,5.79574334]
[1748971161562,6.2001,161.18,161.17,5.79574334]
[1748971161862,34.00314808,161.2,161.16,6.05626436]
[1748971163269,6.2005,161.17,161.16,6.05626436]
[1748971163471,9.66788571,161.18,161.15,5.79574334]
[1748971163673,33.38,161.17,161.14,5.79574334]
[1748971163868,6.2017,161.14,161.13,5.79574334]
[1748971164083,33.38,161.17,161.12,5.79574334]
[1748971164482,9.70859487,161.16,161.13,0.0418339]
[1748971165076,6.2017,161.14,161.13,0.0418339]
[1748971165879,6.2032,161.11,161.08,5.79574334]
[1748971166075,6.2032,161.11,161.07,15.46362905]
[1748971166676,6.2032,161.11,161.08,6.2037]
[1748971166883,6.24534189,161.11,161.08,6.24291012]
[1748971167182,6.24534189,161.11,161.09,6.2036]
[1748971168283,0.04214189,161.11,161.1,6.2032]
[1748971168580,35.3973,161.17,161.1,9.66788571]
[1748971169089,6.2016,161.15,161.12,6.2024]
[1748971169490,6.24153001,161.15,161.12,6.24233602]
[1748971169692,6.202,161.14,161.12,0.03993602]
[1748971172187,6.2021,161.13,161.12,0.03993602]
[1748971176396,39.6021,161.13,161.12,0.03993602]
[1748971184690,43.06788571,161.13,161.05,2.0395]
[1748971184895,43.06788571,161.13,161.05,11.70738571]
[1748971185197,6.2036,161.1,161.07,6.2042]
[1748971185799,6.24574948,161.1,161.07,6.2502408]
[1748971187598,6.24574948,161.1,161.08,6.204]
[1748971191805,43.06788571,161.09,161.07,0.0460408]
[1748971191990,33.4,161.09,161.07,0.0460408]
[1748971192896,33.4,161.09,161.07,6.2501408]
[1748971193801,33.4,161.09,161.07,15.91802651]
[1748971194192,6.24544948,161.1,161.08,6.204]
[1748971194397,0.04214948,161.1,161.07,9.71392651]
[1748971194803,0.04214948,161.1,161.09,15.87148571]
[1748971197295,32.82,161.16,161.09,9.66788571]
[1748971197604,32.82,161.16,161.13,9.66788571]
[1748971198101,39.0203,161.18,161.15,15.86918571]
[1748971198401,32.86646824,161.18,161.15,15.91122326]
[1748971198609,32.86646824,161.18,161.16,6.2006]
[1748971199001,32.86646824,161.18,161.15,9.70992326]
[1748971199204,39.06656824,161.18,161.15,15.91102326]
[1748971199404,32.86646824,161.18,161.15,15.91102326]
[1748971199700,32.86646824,161.18,161.15,9.70992326]
[1748971200910,39.06666824,161.18,161.15,15.91102326]
[1748971201604,0.04646824,161.18,161.17,9.66788571]
[1748971203109,0.04646824,161.18,161.17,15.86838571]
[1748971203606,535.9,161.28,161.17,15.86838571]
[1748971203607,34.52,161.29,161.23,6.1981]
[1748971203808,34.52,161.29,161.24,9.66788571]
[1748971204003,6.197,161.27,161.24,9.66788571]
[1748971204607,6.2395801,161.27,161.24,9.71319869]
[1748971205010,6.1971,161.26,161.24,9.71319869]
[1748971206714,6.1975,161.25,161.24,9.71319869]
[1748971207012,6.1975,161.25,161.24,0.04531298]
[1748971207710,6.1971,161.26,161.24,0.04531298]
[1748971208702,0.0425801,161.27,161.24,9.71319869]
[1748971208910,0.0425801,161.27,161.26,9.66788571]
[1748971210203,0.0425801,161.27,161.25,6.1974]
[1748971210402,0.0425801,161.27,161.26,9.66788571]
[1748971211816,0.0425801,161.27,161.25,9.66788571]
[1748971212115,0.0425801,161.27,161.25,15.86508571]
[1748971214618,0.0425801,161.27,161.25,9.66788571]
[1748971214813,6.2394801,161.27,161.25,9.66788571]
[1748971215013,0.0425801,161.27,161.25,9.66788571]
[1748971216109,0.0425801,161.27,161.25,15.86528571]
[1748971216508,0.0425801,161.27,161.25,9.66788571]
[1748971216717,0.0425801,161.27,161.26,6.1971]
[1748971218521,0.0425801,161.27,161.25,15.86518571]
[1748971219111,0.0425801,161.27,161.25,9.66788571]
[1748971219315,6.1951,161.32,161.26,9.66788571]
[1748971219618,535.9,161.35,161.3,9.66788571]
[1748971220012,6.1946,161.33,161.3,9.66788571]
[1748971220207,6.24053787,161.33,161.3,9.71509968]
[1748971220815,6.24053787,161.33,161.3,15.91059968]
[1748971221518,6.24053787,161.33,161.3,9.71509968]
[1748971222522,6.1948,161.32,161.3,9.71509968]
[1748971223913,6.1948,161.32,161.3,15.91059968]
[1748971225622,6.24043787,161.33,161.3,15.91059968]
[1748971226521,6.1951,161.31,161.3,0.04721397]
[1748971226728,34.5,161.32,161.26,9.66788571]
[1748971227027,34.5,161.32,161.25,9.66788571]
[1748971227331,6.1957,161.3,161.27,6.1965]
[1748971227521,34.5,161.32,161.27,9.66788571]
[1748971227818,0.04003301,161.3,161.29,6.1959]
[1748971228014,34.5,161.35,161.29,9.66788571]
[1748971228218,2.1328,161.36,161.32,9.66788571]
[1748971228417,11.82858571,161.39,161.32,9.66788571]
[1748971228418,40.6932,161.37,161.32,9.66788571]
[1748971228621,34.5,161.37,161.32,9.66788571]
[1748971229017,44.16788571,161.37,161.33,0.04343964]
[1748971229216,0.04431876,161.36,161.33,0.04343964]
[1748971229424,6.194,161.34,161.33,0.04343964]
[1748971231522,6.1959,161.3,161.26,44.16788571]
[1748971231726,6.1959,161.3,161.26,9.66788571]
[1748971231918,6.1959,161.3,161.27,6.1966]
[1748971232524,6.24035206,161.3,161.28,6.1963]
[1748971233023,0.04445206,161.3,161.28,6.1963]
[1748971234028,0.04445206,161.3,161.29,6.1959]
[1748971234421,0.04445206,161.3,161.27,9.71048522]
[1748971235223,0.04445206,161.3,161.28,6.196]
[1748971236525,6.24005206,161.3,161.27,15.90708522]
[1748971237624,0.04445206,161.3,161.28,6.1962]
[1748971239019,0.04445206,161.3,161.29,6.1959]
[1748971239522,0.04445206,161.3,161.29,15.86378571]
[1748971240527,33.74,161.36,161.32,6.1946]
[1748971240828,33.74,161.36,161.29,9.66788571]
[1748971240829,6.2659,161.39,161.31,9.66788571]
[1748971241029,33.74,161.38,161.31,9.66788571]
[1748971241429,6.23933369,161.36,161.33,6.23407609]
[1748971241837,0.04593369,161.36,161.33,0.03997609]
[1748971242031,6.1936,161.35,161.33,0.03997609]
[1748971242228,0.04593369,161.36,161.33,0.03997609]
[1748971242532,6.1938,161.35,161.33,0.03997609]
[1748971242733,55.16443641,161.44,161.33,15.9078618]
[1748971242928,19.20014907,161.58,161.33,15.9078618]
[1748971242929,5.73807551,161.57,161.36,15.38519349]
[1748971243236,5.73807551,161.57,161.34,583.5919]
[1748971243237,15.82293488,161.47,161.37,37.8286]
[1748971243532,43.36836213,161.48,161.42,6.1907]
[1748971243831,39.97581812,161.47,161.43,0.03950283]
[1748971244026,0.04651812,161.47,161.43,0.03950283]
[1748971244225,0.04651812,161.47,161.45,6.1894]
[1748971244428,0.04651812,161.47,161.43,0.03950283]
[1748971244827,0.04651812,161.47,161.46,6.1894]
[1748971245024,0.04651812,161.47,161.46,15.81454887]
[1748971245225,33.74,161.5,161.46,9.62514887]
[1748971245835,33.74,161.5,161.49,6.1882]
[1748971246037,33.74,161.5,161.48,9.62514887]
[1748971246233,0.04364868,161.51,161.48,9.62514887]
[1748971246429,0.04364868,161.51,161.48,9.67008763]
[1748971247034,0.04364868,161.51,161.48,15.85838763]
[1748971247539,0.04364868,161.51,161.48,9.67008763]
[1748971247732,0.04364868,161.51,161.49,6.1879]
[1748971247933,0.04364868,161.51,161.5,9.62514887]
[1748971248128,0.04364868,161.51,161.48,0.04493876]
[1748971248629,0.04364868,161.51,161.48,9.67008763]
[1748971248826,0.04364868,161.51,161.5,6.1879]
[1748971249032,0.04364868,161.51,161.5,9.62514887]
[1748971250039,0.04364868,161.51,161.48,9.67008763]
[1748971250334,0.04364868,161.51,161.5,9.62514887]
[1748971251735,0.04364868,161.51,161.5,15.81304887]
[1748971252132,0.04364868,161.51,161.48,0.04493876]
[1748971252433,0.04364868,161.51,161.49,15.81304887]
[1748971252835,0.04364868,161.51,161.5,6.1879]